fUSD/lending_fUSD_20241213
["ID","MTS","AMOUNT","RATE_DAILY","PERIOD"]
[345126874,1734050827334,-2435.094604,0.00017908,2]
[345126875,1734050827355,-300.0,0.00017999,2]
[345126876,1734050827377,-152.89664232,0.00018,2]
[345126877,1734050827397,-20241.21883474,0.00018,2]
[345126878,1734050827451,-3312.7194324,0.00018,2]
[345126879,1734050827473,-740.3,0.00018387,2]
[345126880,1734050827496,-169.76,0.00018493,2]
[345126881,1734050827517,-1161.96,0.00018904,2]
[345126882,1734050827537,-600.0,0.00019,2]
[345126883,1734050827558,-150.0,0.00019144,2]
[345126884,1734050827579,-1430.06502632,0.00019146,2]
[345126885,1734050828093,-2133.15798999,0.00019146,2]
[345126886,1734050851239,-213.91338922,0.00013,2]
[345126891,1734051031756,-296.94398968,0.00013,2]
[345126894,1734051037681,-306.18,0.00013,2]
[345126895,1734051037694,-722.130003,0.00013,2]
[345126896,1734051037791,-115.73927864,0.00013,2]
[345126897,1734051037801,-150.0,0.00019145,2]
[345126898,1734051037811,-1263.0,0.00019146,2]
[345126899,1734051037820,-567.0,0.00019146,2]
[345126900,1734051037830,-448.87730532,0.00019146,2]
[345126901,1734051037842,-1557.12269468,0.00019146,2]
[345126902,1734051037852,-631.0,0.00019146,2]
[345126903,1734051037863,-150.0,0.00019146,2]
[345126904,1734051037873,-564.0,0.00019146,2]
[345126905,1734051037883,-1895.0,0.00019146,2]
[345126906,1734051037898,-3764.0,0.00019146,2]
[345126907,1734051037911,-1253.0,0.00019146,2]
[345126908,1734051037920,-817.0,0.00019146,2]
[345126909,1734051037930,-2107.91376682,0.00019146,2]
[345126910,1734051037942,-1521.08623318,0.00019146,2]
[345126911,1734051037951,-535.0,0.00019146,2]
[345126912,1734051037961,-931.0,0.00019146,2]
[345126913,1734051037970,-3879.0,0.00019146,2]
[345126914,1734051037980,-150.0,0.00019146,2]
[345126915,1734051037990,-1168.0,0.00019146,2]
[345126916,1734051037999,-2028.46325129,0.00019146,2]
[345126917,1734051038011,-11699.53674871,0.00019146,2]
[345126918,1734051038024,-150.0,0.00019146,2]
[345126919,1734051038035,-1161.96,0.00019178,2]
[345126920,1734051038044,-1161.96,0.00019452,2]
[345126921,1734051038055,-234.42692736,0.0001956,2]
[345126922,1734051038064,-2100.0,0.00019561,2]
[345126924,1734051038074,-800.0,0.00019561,2]
[345126928,1734051038227,-3818.1,0.00019653,2]
[345126929,1734051038245,-1161.96,0.00019726,2]
[345126930,1734051038255,-1709.81,0.00019752,2]
[345126931,1734051038265,-451.34,0.00019786,2]
[345126932,1734051038275,-1205.79,0.0001979,2]
[345126933,1734051038285,-2751.0,0.00019811,2]
[345126934,1734051038294,-1280.0,0.00019819,2]
[345126935,1734051038304,-200.0,0.0001983,2]
[345126936,1734051038314,-211.24,0.00019953,2]
[345126937,1734051038323,-200.0,0.00019973,2]
[345126938,1734051038333,-1000.0,0.00019989,2]
[345126939,1734051038342,-184.54,0.00019989,2]
[345126940,1734051038362,-335.0505,0.00019999,2]
[345126941,1734051038373,-150.0,0.0002,2]
[345126942,1734051038383,-1161.96,0.0002,2]
[345126943,1734051038397,-250.0,0.0002006,2]
[345126944,1734051038407,-300.0,0.00020062,2]
[345126945,1734051038418,-250.0,0.00020062,2]
[345126946,1734051038427,-150.0,0.000201,2]
[345126947,1734051038438,-1271.42,0.00020112,2]
[345126948,1734051038448,-500.0,0.00020112,2]
[345126949,1734051038458,-177.32,0.00020112,2]
[345126950,1734051038468,-250.0,0.00020112,2]
[345126951,1734051038479,-377.87,0.00020239,30]
[345126952,1734051038489,-1161.96,0.00020273,2]
[345126953,1734051038500,-1000.0,0.00020281,2]
[345126954,1734051038510,-4000.0,0.00020368,2]
[345126955,1734051038520,-1161.96,0.00020547,2]
[345126956,1734051038530,-1280.0,0.00020552,2]
[345126957,1734051038539,-427.095,0.0002063,2]
[345126958,1734051038549,-740.3,0.00020651,2]
[345126959,1734051038560,-2100.0,0.00020657,2]
[345126960,1734051038570,-800.0,0.00020657,2]
[345126961,1734051038580,-1161.96,0.00020821,2]
[345126962,1734051038590,-300.121309,0.00020914,2]
[345126963,1734051038600,-174.0748937,0.00020915,2]
[345126964,1734051038610,-187.1,0.00020959,2]
[345126965,1734051038620,-650.0,0.00021,2]
[345126966,1734051038630,-300.121309,0.00021014,3]
[345126967,1734051038643,-355.44979604,0.00021094,2]
[345126968,1734051038653,-1161.96,0.00021095,2]
[345126969,1734051038664,-300.121309,0.00021113,2]
[345126970,1734051038674,-300.121309,0.00021114,4]
[345126971,1734051038684,-2171.339,0.00021203,2]
[345126972,1734051038695,-167.544,0.00021203,2]
[345126973,1734051038706,-300.121309,0.00021213,3]
[345126974,1734051038716,-300.121309,0.00021214,5]
[345126975,1734051038727,-300.121309,0.00021215,2]
[345126976,1734051038738,-60158.67774913,0.00021242,2]
[345126977,1734051038750,-1093.6824,0.00021246,2]
[345126978,1734051038760,-2010.19939822,0.00021248,2]
[345126979,1734051038770,-44834.76230492,0.00021248,2]
[345126980,1734051038780,-11682.93865182,0.00021249,2]
[345126981,1734051038793,-28658.96554826,0.00021249,2]
[345126982,1734051038814,-1099.0,0.00019146,2]
[345126983,1734051038823,-342.50034239,0.00021249,2]
[345126984,1734051038843,-11490.0252909,0.00021249,2]
[345126989,1734051039826,-7984.24791576,0.00021249,2]
[345126990,1734051039836,-2010.19939822,0.00021252,2]
[345126991,1734051039846,-44834.76230492,0.00021256,2]
[345126992,1734051039856,-2010.19939822,0.00021259,2]
[345126993,1734051039865,-44834.76230492,0.00021264,2]
[345126994,1734051039875,-200.0,0.00021265,2]
[345126995,1734051039884,-60158.67774913,0.00021266,2]
[345126996,1734051039897,-2010.19939822,0.00021268,2]
[345126997,1734051039907,-44834.76230492,0.00021269,2]
[345126998,1734051039916,-60158.67774913,0.00021271,2]
[345126999,1734051039925,-44834.76230492,0.00021275,2]
[345127000,1734051039935,-60158.67774913,0.00021276,2]
[345127001,1734051039944,-2010.19939822,0.00021282,2]
[345127002,1734051039954,-200.0,0.00021283,2]
[345127003,1734051039963,-1280.0,0.00021286,2]
[345127004,1734051039972,-2010.19939822,0.00021291,2]
[345127005,1734051039982,-4523.52118782,0.00021294,2]
[345127006,1734051039997,-4578.82989603,0.00021294,2]
[345127013,1734051042707,-200.0,0.00020112,2]
[345127015,1734051042718,-700.64965301,0.00021294,2]
[345127018,1734051042762,-464.24553513,0.00021294,2]
[345127019,1734051043033,-3854.82911498,0.00021294,2]
[345127021,1734051045680,-10026.0,0.00021294,2]
[345127022,1734051045692,-270.775,0.00021294,2]
[345127023,1734051045703,-2850.75370266,0.00021294,2]
[345127024,1734051045789,-710.33503863,0.00021294,2]
[345127025,1734051045846,-387.445,0.00021294,2]
[345127026,1734051045904,-31791.29362087,0.00021294,2]
[345127027,1734051045914,-44834.76230492,0.00021299,2]
[345127028,1734051045923,-300.121309,0.00021313,4]
[345127029,1734051045933,-300.121309,0.00021314,6]
[345127030,1734051045942,-300.121309,0.00021315,3]
[345127031,1734051045952,-355.44979604,0.0002132,2]
[345127032,1734051045962,-1161.96,0.00021369,2]
[345127033,1734051045972,-300.0,0.00021404,2]
[345127034,1734051045982,-300.121309,0.00021413,5]
[345127035,1734051045991,-300.121309,0.00021414,2]
[345127036,1734051046001,-300.121309,0.00021415,4]
[345127037,1734051046010,-1062.0,0.00021423,2]
[345127038,1734051046023,-150.0,0.00021442,2]
[345127039,1734051046036,-150.0,0.00021446,2]
[345127040,1734051046046,-150.0,0.00021451,2]
[345127041,1734051046055,-150.0,0.00021455,2]
[345127042,1734051046067,-150.0,0.00021458,2]
[345127044,1734051046077,-150.0,0.00021458,2]
[345127046,1734051046087,-150.0,0.00021462,2]
[345127048,1734051046096,-150.0,0.00021463,2]
[345127050,1734051046106,-150.0,0.00021463,2]
[345127052,1734051046115,-150.0,0.00021464,2]
[345127054,1734051046125,-150.0,0.00021468,2]
[345127055,1734051046134,-150.0,0.0002147,2]
[345127056,1734051046148,-150.0,0.00021472,2]
[345127057,1734051046158,-150.0,0.00021477,2]
[345127058,1734051046168,-599.39,0.00021477,2]
[345127059,1734051046177,-223.27,0.00021477,2]
[345127060,1734051046187,-150.0,0.00021483,2]
[345127061,1734051046197,-150.0,0.00021483,2]
[345127062,1734051046207,-150.0,0.00021483,2]
[345127063,1734051046217,-150.0,0.00021483,2]
[345127064,1734051046226,-150.0,0.00021485,2]
[345127065,1734051046236,-150.0,0.00021487,2]
[345127066,1734051046246,-150.0,0.00021489,2]
[345127067,1734051046256,-150.0,0.0002149,2]
[345127068,1734051046266,-150.0,0.00021498,2]
[345127069,1734051046275,-150.0,0.00021499,2]
[345127070,1734051046285,-1882.3253,0.000215,2]
[345127071,1734051046295,-150.0,0.00021504,2]
[345127072,1734051046305,-2500.0,0.00021507,2]
[345127073,1734051046314,-150.0,0.00021509,2]
[345127074,1734051046324,-300.121309,0.00021513,6]
[345127075,1734051046334,-300.121309,0.00021514,3]
[345127076,1734051046343,-300.121309,0.00021515,5]
[345127077,1734051046354,-150.0,0.00021515,2]
[345127078,1734051046364,-150.0,0.00021521,2]
[345127079,1734051046373,-150.0,0.00021522,2]
[345127080,1734051046383,-150.0,0.00021523,2]
[345127081,1734051046396,-150.0,0.00021526,2]
[345127082,1734051046407,-150.0,0.00021526,2]
[345127083,1734051046417,-150.0,0.00021531,2]
[345127084,1734051046426,-150.0,0.00021533,2]
[345127085,1734051046436,-150.0,0.00021537,2]
[345127086,1734051046445,-150.0,0.00021538,2]
[345127087,1734051046455,-150.0,0.00021539,2]
[345127088,1734051046465,-500.0,0.00021543,2]
[345127089,1734051046475,-150.0,0.00021545,2]
[345127090,1734051046484,-150.0,0.00021548,2]
[345127091,1734051046494,-150.0,0.00021548,2]
[345127092,1734051046504,-150.0,0.00021553,2]
[345127093,1734051046513,-150.0,0.0002156,2]
[345127094,1734051046523,-150.0,0.00021565,2]
[345127095,1734051046533,-150.0,0.00021569,2]
[345127096,1734051046542,-150.0,0.00021572,2]
[345127097,1734051046686,-150.0,0.00021576,2]
[345127098,1734051046696,-150.0,0.00021578,2]
[345127099,1734051046707,-150.0,0.00021581,2]
[345127100,1734051046717,-150.0,0.00021581,2]
[345127101,1734051046727,-150.0,0.00021582,2]
[345127102,1734051046736,-150.0,0.00021589,2]
[345127103,1734051046746,-888.0,0.00021589,5]
[345127104,1734051046757,-888.0,0.00021589,5]
[345127105,1734051046767,-888.0,0.00021589,5]
[345127106,1734051046776,-888.0,0.00021589,5]
[345127107,1734051046785,-888.0,0.00021589,5]
[345127108,1734051046795,-888.0,0.00021589,5]
[345127109,1734051046804,-888.0,0.00021589,5]
[345127110,1734051046814,-888.0,0.00021589,5]
[345127111,1734051046823,-888.0,0.00021589,5]
[345127112,1734051046835,-808.0,0.00021589,5]
[345127113,1734051046844,-150.0,0.0002159,2]
[345127114,1734051046854,-150.0,0.00021593,2]
[345127115,1734051046864,-150.0,0.00021597,2]
[345127116,1734051046873,-150.0,0.00021597,2]
[345127117,1734051046883,-150.0,0.00021602,2]
[345127118,1734051046893,-150.0,0.00021606,2]
[345127119,1734051046903,-150.0,0.00021607,2]
[345127120,1734051046913,-150.0,0.00021607,2]
[345127121,1734051046921,-150.0,0.00021608,2]
[345127122,1734051046931,-300.121309,0.00021613,7]
[345127123,1734051046941,-300.121309,0.00021614,4]
[345127124,1734051046951,-300.121309,0.00021615,6]
[345127125,1734051046960,-300.121309,0.00021616,5]
[345127126,1734051046970,-300.121309,0.00021616,4]
[345127127,1734051046980,-300.121309,0.00021616,3]
[345127128,1734051046991,-300.121309,0.00021616,2]
[345127129,1734051047000,-1114.3833,0.00021617,2]
[345127130,1734051047011,-1000.0,0.00021617,2]
[345127131,1734051047024,-5000.0,0.00021617,2]
[345127132,1734051047034,-349.1674605,0.00021617,2]
[345127133,1734051047045,-181.61312466,0.00021617,2]
[345127134,1734051047055,-150.0,0.00021618,2]
[345127135,1734051047067,-150.0,0.00021622,2]
[345127136,1734051047078,-150.0,0.00021624,2]
[345127137,1734051047088,-150.0,0.00021627,2]
[345127138,1734051047099,-150.0,0.00021633,2]
[345127139,1734051047109,-355.44979606,0.00021633,2]
[345127140,1734051047119,-150.0,0.00021634,2]
[345127141,1734051047129,-150.0,0.00021638,2]
[345127142,1734051047139,-150.0,0.00021643,2]
[345127143,1734051047155,-150.0,0.00021643,2]
[345127144,1734051047165,-150.0,0.00021643,2]
[345127145,1734051047175,-1161.96,0.00021643,2]
[345127146,1734051047186,-150.0,0.00021644,2]
[345127147,1734051047195,-150.0,0.00021645,2]
[345127148,1734051047205,-150.0,0.00021648,2]
[345127149,1734051047215,-150.0,0.00021649,2]
[345127150,1734051047225,-150.0,0.00021649,2]
[345127151,1734051047234,-756.04286161,0.00021649,2]
[345127152,1734051047244,-150.0,0.00021651,2]
[345127153,1734051047254,-150.0,0.00021651,2]
[345127154,1734051047265,-150.0,0.00021654,2]
[345127155,1734051047275,-150.0,0.00021657,2]
[345127156,1734051047285,-150.0,0.00021662,2]
[345127157,1734051047296,-150.0,0.00021663,2]
[345127158,1734051047306,-756.04286161,0.00021664,2]
[345127159,1734051047316,-150.0,0.00021667,2]
[345127160,1734051047327,-349.16746042,0.00021673,2]
[345127161,1734051047337,-150.0,0.00021676,2]
[345127162,1734051047346,-150.0,0.00021678,2]
[345127163,1734051047356,-756.04286161,0.0002168,2]
[345127164,1734051047367,-150.0,0.00021682,2]
[345127165,1734051047378,-150.0,0.00021683,2]
[345127166,1734051047388,-150.0,0.00021683,2]
[345127167,1734051047403,-150.0,0.00021683,2]
[345127168,1734051047413,-150.0,0.00021689,2]
[345127169,1734051047423,-150.0,0.00021693,2]
[345127170,1734051047433,-756.04286161,0.00021695,2]
[345127171,1734051047444,-150.0,0.00021699,2]
[345127172,1734051047454,-158.0,0.000217,5]
[345127173,1734051047463,-150.0,0.00021704,2]
[345127174,1734051047474,-150.0,0.00021704,2]
[345127175,1734051047484,-150.0,0.00021706,2]
[345127176,1734051047494,-150.0,0.00021706,2]
[345127177,1734051047504,-150.0,0.00021708,2]
[345127178,1734051047513,-150.0,0.00021708,2]
[345127179,1734051047523,-756.04286161,0.0002171,2]
[345127180,1734051047533,-150.0,0.00021711,2]
[345127181,1734051047544,-7627.4652372,0.00021711,2]
[345127182,1734051047553,-3714.2956907,0.00021711,2]
[345127183,1734051047564,-150.0,0.00021712,2]
[345127184,1734051047574,-300.121309,0.00021713,8]
[345127185,1734051047584,-300.121309,0.00021714,5]
[345127186,1734051047594,-300.121309,0.00021715,7]
[345127187,1734051047604,-150.0,0.00021715,2]
[345127188,1734051047614,-300.121309,0.00021716,2]
[345127189,1734051047624,-300.121309,0.00021716,3]
[345127190,1734051047633,-300.121309,0.00021716,4]
[345127191,1734051047647,-300.121309,0.00021716,5]
[345127192,1734051047657,-111889.98410204,0.00021717,2]
[345127193,1734051047668,-534.28723276,0.00021717,2]
[345127194,1734051047677,-56051.60585158,0.00021717,2]
[345127195,1734051047763,-2651.76907798,0.00021717,2]
[345127198,1734051288048,172.97,0.00010137,2]
[345127199,1734051304323,159.0,0.00010137,30]
[345127200,1734051304696,159.0,0.0001105,30]
[345127201,1734051305479,159.0,0.00011962,30]
[345127205,1734051603926,159.0,0.00010137,30]
[345127206,1734051603990,159.0,0.00011323,30]
[345127207,1734051905645,159.0,0.00010137,30]
[345127208,1734051905942,159.0,0.0001162,30]
[345127210,1734052028133,-300.0,0.00012874,2]
[345127211,1734052028154,-500.0,0.00012875,2]
[345127212,1734052028174,-500.0,0.00012875,2]
[345127213,1734052028195,-500.0,0.00012875,2]
[345127214,1734052028216,-500.0,0.00012875,2]
[345127215,1734052028239,-132.49580721,0.00012875,2]
[345127216,1734052039147,-367.50419279,0.00012875,2]
[345127217,1734052039169,-450.0,0.00013,2]
[345127218,1734052039193,-159.0,0.00013103,30]
[345127219,1734052039218,-164.73,0.00013699,2]
[345127220,1734052039241,-420.0,0.0001412,2]
[345127221,1734052039263,-159.0,0.00014586,30]
[345127222,1734052039285,-500.0,0.00015,2]
[345127223,1734052039308,-515.0,0.00015487,2]
[345127224,1734052039330,-275.67,0.0001582,2]
[345127225,1734052039352,-159.0,0.00016069,30]
[345127226,1734052039375,-516.08101356,0.00016095,2]
[345127227,1734052046101,-501.83898644,0.00016095,2]
[345127228,1734052046125,-450.0,0.00016399,2]
[345127229,1734052046147,-996.61,0.000164,2]
[345127230,1734052046169,-1009.83,0.000164,2]
[345127231,1734052046191,-1006.57,0.000164,2]
[345127232,1734052046211,-709.12189028,0.000164,2]
[345127233,1734052051084,-698.52809146,0.00016321,2]
[345127234,1734052203370,160.0,0.00010137,30]
[345127236,1734052231862,-160.0,0.00014091,30]
[345127238,1734052231872,-159.30578917,0.0001623,2]
[345127239,1734052231881,-283.55806966,0.000163,2]
[345127240,1734052231891,-1000.89,0.0001632,2]
[345127241,1734052231900,-287.39190854,0.00016321,2]
[345127242,1734052231910,-581.2158774,0.0001633,2]
[345127243,1734052231921,-259.06152371,0.0001633,2]
[345127244,1734052231936,-162.96259889,0.0001633,2]
[345127245,1734052231946,-589.80534097,0.00016349,2]
[345127246,1734052235261,-395.24465903,0.00016349,2]
[345127247,1734052235272,-983.99,0.00016371,2]
[345127248,1734052235283,-996.91,0.00016386,2]
[345127249,1734052235292,-308.55810972,0.000164,2]
[345127250,1734052235302,-982.55,0.000164,2]
[345127251,1734052235312,-1006.4,0.000164,2]
[345127252,1734052235322,-985.71,0.000164,2]
[345127253,1734052235332,-4095.0,0.000164,2]
[345127254,1734052235341,-299.99,0.000164,4]
[345127255,1734052235351,-1105.78,0.000164,2]
[345127256,1734052235360,-175.42,0.00016712,2]
[345127257,1734052235371,-151.0,0.00016832,2]
[345127258,1734052235380,-550.0,0.00017,2]
[345127259,1734052235390,-921.64,0.00017977,2]
[345127260,1734052235399,-160.0,0.00018046,30]
[345127261,1734052235409,-164.73,0.00018493,2]
[345127262,1734052235419,-150.0,0.00018633,2]
[345127263,1734052235428,-13728.0,0.00018633,2]
[345127264,1734052235437,-3879.0,0.00018633,2]
[345127265,1734052235446,-1168.0,0.00018633,2]
[345127266,1734052235461,-629.4,0.00018904,2]
[345127267,1734052235471,-600.0,0.00019,2]
[345127268,1734052235480,-1000.0,0.00019145,2]
[345127269,1734052235489,-1000.0,0.00019145,2]
[345127270,1734052235499,-1142.56690995,0.00019146,2]
[345127271,1734052235515,-120.43309005,0.00019146,2]
[345127272,1734052235526,-567.0,0.00019146,2]
[345127273,1734052235535,-2006.0,0.00019146,2]
[345127274,1734052235545,-150.0,0.00019146,2]
[345127275,1734052235557,-631.0,0.00019146,2]
[345127276,1734052235567,-1895.0,0.00019146,2]
[345127277,1734052235577,-97.84061077,0.00019146,2]
[345127278,1734052235589,-466.15938923,0.00019146,2]
[345127279,1734052235598,-817.0,0.00019146,2]
[345127280,1734052235609,-3764.0,0.00019146,2]
[345127281,1734052235619,-1253.0,0.00019146,2]
[345127282,1734052235629,-535.0,0.00019146,2]
[345127283,1734052235638,-3629.0,0.00019146,2]
[345127284,1734052235648,-932.0,0.00019146,2]
[345127285,1734052235658,-500.0,0.00019146,2]
[345127286,1734052235667,-629.4,0.00019178,2]
[345127287,1734052235676,-629.4,0.00019452,2]
[345127288,1734052235685,-250.0,0.00019506,2]
[345127289,1734052235695,-800.0,0.00019561,2]
[345127290,1734052235704,-250.0,0.00019574,2]
[345127291,1734052235718,-500.25,0.0001958,2]
[345127292,1734052235727,-629.4,0.00019726,2]
[345127293,1734052235737,-512.0,0.00019798,2]
[345127294,1734052235746,-2751.0,0.00019871,2]
[345127295,1734052235755,-20223.3,0.00019876,2]
[345127296,1734052235765,-150.0,0.0001989,2]
[345127297,1734052235774,-500.0,0.00019909,2]
[345127298,1734052235784,-358.97,0.00019988,30]
[345127299,1734052235793,-500.0,0.0002,120]
[345127300,1734052235803,-716.0,0.0002,2]
[345127301,1734052235813,-26470.84868694,0.0002,2]
[345127302,1734052235823,-629.4,0.0002,2]
[345127303,1734052235833,-1005.9,0.00020041,2]
[345127304,1734052235842,-184.54,0.00020112,2]
[345127305,1734052235852,-200.0,0.00020112,2]
[345127306,1734052235861,-302.22,0.00020112,2]
[345127307,1734052235871,-748.13,0.00020112,2]
[345127308,1734052235880,-250.0,0.00020112,2]
[345127309,1734052235889,-200.0,0.00020112,2]
[345127310,1734052235899,-351.4,0.00020112,2]
[345127311,1734052235909,-921.64,0.00020241,2]
[345127312,1734052235919,-629.4,0.00020273,2]
[345127313,1734052235928,-512.0,0.0002053,2]
[345127314,1734052235937,-4000.0,0.00020546,2]
[345127315,1734052235947,-629.4,0.00020547,2]
[345127316,1734052235963,-1000.0,0.00020551,2]
[345127317,1734052235972,-6771.0659,0.00020557,2]
[345127318,1734052235981,-2029.1011,0.00020557,2]
[345127319,1734052235991,-3105.1433,0.00020557,2]
[345127320,1734052236001,-423.973,0.0002063,2]
[345127321,1734052236011,-1900.0,0.00020657,2]
[345127322,1734052236020,-800.0,0.00020657,2]
[345127323,1734052236030,-150.0,0.000208,2]
[345127324,1734052236039,-629.4,0.00020821,2]
[345127325,1734052236048,-181.61312465,0.000209,2]
[345127326,1734052236057,-582.99178926,0.000209,2]
[345127327,1734052236067,-582.99178912,0.00020948,2]
[345127328,1734052236076,-1536.31,0.00020959,2]
[345127329,1734052236086,-812.95,0.00020959,2]
[345127330,1734052236095,-435.5,0.00020959,2]
[345127331,1734052236104,-150.0,0.00020959,2]
[345127332,1734052236113,-150.0,0.00020959,2]
[345127333,1734052236123,-364.47,0.00020959,2]
[345127334,1734052236133,-150.0,0.00020959,2]
[345127335,1734052236142,-435.5,0.00020959,2]
[345127336,1734052236152,-150.0,0.00020959,2]
[345127337,1734052236161,-364.47,0.00020959,2]
[345127338,1734052236171,-150.0,0.00020959,2]
[345127339,1734052236181,-150.0,0.00020959,2]
[345127340,1734052236190,-150.0,0.00020959,2]
[345127341,1734052236199,-435.5,0.00020959,2]
[345127342,1734052236210,-150.0,0.00020959,2]
[345127343,1734052236220,-150.0,0.00020959,2]
[345127344,1734052236229,-364.47,0.00020959,2]
[345127345,1734052236239,-435.5,0.00020959,2]
[345127346,1734052236248,-150.0,0.00020959,2]
[345127347,1734052236257,-363.77,0.00020959,2]
[345127348,1734052236266,-435.5,0.00020959,2]
[345127349,1734052236276,-150.0,0.00020959,2]
[345127350,1734052236286,-870.23,0.00020959,2]
[345127351,1734052236295,-582.99178912,0.00020997,2]
[345127352,1734052236305,-500.0,0.00021,120]
[345127353,1734052236315,-650.0,0.00021,2]
[345127354,1734052236324,-582.99178912,0.00021045,2]
[345127355,1734052236333,-582.99178912,0.00021093,2]
[345127356,1734052236342,-629.4,0.00021095,2]
[345127357,1734052236352,-150.0,0.00021096,2]
[345127358,1734052236361,-1500.0,0.000211,2]
[345127359,1734052236371,-582.99178912,0.00021141,2]
[345127360,1734052236381,-582.99178912,0.0002119,2]
[345127361,1734052236390,-1000.0,0.00021202,2]
[345127362,1734052236399,-150.0,0.00021204,2]
[345127363,1734052236409,-17574.44967025,0.00021236,2]
[345127364,1734052236418,-961.33403096,0.00021237,2]
[345127365,1734052236428,-582.99178912,0.00021238,2]
[345127366,1734052236437,-11938.42362247,0.00021241,2]
[345127367,1734052236446,-961.33403096,0.00021241,2]
[345127368,1734052236455,-11938.42362247,0.00021244,2]
[345127369,1734052236467,-200.0,0.00021247,2]
[345127370,1734052236476,-562.38499778,0.00021251,2]
[345127371,1734052236486,-2109.04897394,0.00021252,2]
[345127372,1734052236496,-5039.29209472,0.00021253,2]
[345127373,1734052236505,-2109.04897394,0.00021255,2]
[345127374,1734052236515,-17574.44967025,0.00021256,2]
[345127375,1734052236524,-11938.42362247,0.00021257,2]
[345127376,1734052236533,-961.33403096,0.00021258,2]
[345127377,1734052236543,-11938.42362247,0.00021258,2]
[345127378,1734052236552,-562.38499778,0.00021259,2]
[345127379,1734052236568,-4084.68521466,0.00021259,2]
[345127381,1734052237816,-833.69583873,0.000198,2]
[345127382,1734052237828,-451.15504761,0.000198,2]
[345127383,1734052237839,-1027.90064709,0.000198,2]
[345127384,1734052237877,-466.82846657,0.000198,2]
[345127385,1734052237887,-2521.50716367,0.00021259,2]
[345127386,1734052238065,-429.58310108,0.00021259,2]
[345127387,1734052238076,-311.184893,0.00021259,2]
[345127388,1734052238119,-769.96443153,0.00021259,2]
[345127389,1734052238130,-292.04521374,0.00021259,2]
[345127390,1734052238141,-1516.34268863,0.00021259,2]
[345127391,1734052238152,-7649.13696394,0.00021259,2]
[345127392,1734052238161,-512.0,0.00021263,2]
[345127393,1734052238170,-200.0,0.00021264,2]
[345127394,1734052238181,-256.37864559,0.00021265,2]
[345127395,1734052238191,-934.44956126,0.00021268,2]
[345127396,1734052238203,-1572.82199258,0.00021268,2]
[345127399,1734052239873,-1099.0,0.00018633,2]
[345127400,1734052239882,-621.39690758,0.00021268,2]
[345127401,1734052240098,-1910.6236333,0.00021268,2]
[345127402,1734052240107,-2089.02349667,0.00021268,2]
[345127403,1734052240158,-20.02547727,0.00021268,2]
[345127404,1734052240167,-352.77529597,0.00021268,2]
[345127405,1734052240178,-5723.9,0.00021268,2]
[345127406,1734052240222,-2504.75,0.00021268,2]
[345127499,1734052242936,-8993.02437428,0.00021268,2]
[345127500,1734052242947,-256.37864559,0.00021269,2]
[345127501,1734052242956,-961.33403096,0.00021271,2]
[345127502,1734052242967,-961.33403096,0.00021272,2]
[345127503,1734052242982,-4686.5416481,0.00021272,2]
[345127504,1734052242992,-17574.44967025,0.00021273,2]
[345127505,1734052243002,-2109.04897394,0.00021275,2]
[345127506,1734052243011,-200.0,0.00021278,2]